[Event "Titled Tuesday Blitz August 08 Late 2023"]
[White "Garakov, Mikhael"]
[Black "Zirkelbach, Maj"]
[WhiteFideId "4169034"]
[BlackFideId "14613395"]
[WhiteElo "2489"]
[BlackElo "2574"]
[Result "1-0"]
[Round "8"]
[TimeControl "180+1"]
[Date "2023.08.08"]
[WhiteClock "0:01:33"]
[BlackClock "0:00:12"]
[Board "64"]

1. e4 {[%clk 0:03:00]}  e5 {[%clk 0:02:59]} 2. Nf3 {[%clk 0:03:01]}  Nc6 {[%clk 0:02:58]} 3. d4 {[%clk 0:02:59]}  exd4 {[%clk 0:02:58]} 4. Nxd4 {[%clk 0:03:00]}  Nf6 {[%clk 0:02:58]} 5. Nxc6 {[%clk 0:02:57]}  bxc6 {[%clk 0:02:59]} 6. e5 {[%clk 0:02:57]}  Qe7 {[%clk 0:02:59]} 7. Qe2 {[%clk 0:02:57]}  Nd5 {[%clk 0:02:59]} 8. c4 {[%clk 0:02:58]}  Ba6 {[%clk 0:02:59]} 9. b3 {[%clk 0:02:57]}  g6 {[%clk 0:02:58]} 10. f4 {[%clk 0:02:57]}  f6 {[%clk 0:02:51]} 11. Bb2 {[%clk 0:02:48]}  Bg7 {[%clk 0:02:39]} 12. exf6 {[%clk 0:02:35]}  Qxe2+ {[%clk 0:02:38]} 13. Bxe2 {[%clk 0:02:35]}  Nxf6 {[%clk 0:02:38]} 14. Nd2 {[%clk 0:02:34]}  O-O {[%clk 0:02:37]} 15. O-O-O {[%clk 0:02:33]}  d6 {[%clk 0:02:37]} 16. Bf3 {[%clk 0:02:31]}  Bb7 {[%clk 0:02:38]} 17. Rhe1 {[%clk 0:02:29]}  Rae8 {[%clk 0:02:27]} 18. Kc2 {[%clk 0:02:29]}  Bh6 {[%clk 0:01:36]} 19. g3 {[%clk 0:02:23]}  Kf7 {[%clk 0:01:28]} 20. Bc3 {[%clk 0:02:03]}  Rxe1 {[%clk 0:01:20]} 21. Rxe1 {[%clk 0:02:03]}  Re8 {[%clk 0:01:20]} 22. Rxe8 {[%clk 0:02:02]}  Nxe8 {[%clk 0:01:20]} 23. Kd3 {[%clk 0:02:01]}  Ke7 {[%clk 0:01:20]} 24. b4 {[%clk 0:01:58]}  a6 {[%clk 0:01:18]} 25. a4 {[%clk 0:01:57]}  Kd7 {[%clk 0:01:17]} 26. Nb3 {[%clk 0:01:55]}  Bc8 {[%clk 0:00:25]} 27. Na5 {[%clk 0:01:36]}  c5 {[%clk 0:00:25]} 28. Bg4+ {[%clk 0:01:33]}  Kd8 {[%clk 0:00:12]} 29. Nc6# {[%clk 0:01:33]} 1-0


[Site "https://www.chess.com"]

[Event "Titled Tuesday Blitz August 08 Late 2023"]
[White "Hajiyev, Kanan"]
[Black "littlepinkyboy"]
[WhiteFideId "13404148"]
[WhiteElo "2562"]
[BlackElo "2427"]
[Result "0-1"]
[Round "8"]
[TimeControl "180+1"]
[Date "2023.08.08"]
[WhiteClock "0:00:50"]
[BlackClock "0:00:34"]
[Board "67"]

1. d4 {[%clk 0:03:00]}  d5 {[%clk 0:02:59]} 2. Nf3 {[%clk 0:03:01]}  Nf6 {[%clk 0:02:58]} 3. c4 {[%clk 0:03:02]}  c6 {[%clk 0:02:58]} 4. cxd5 {[%clk 0:03:03]}  cxd5 {[%clk 0:02:57]} 5. Nc3 {[%clk 0:03:04]}  Nc6 {[%clk 0:02:58]} 6. Bg5 {[%clk 0:03:05]}  e6 {[%clk 0:02:57]} 7. e3 {[%clk 0:03:05]}  Be7 {[%clk 0:02:58]} 8. Bd3 {[%clk 0:03:05]}  a6 {[%clk 0:02:58]} 9. O-O {[%clk 0:03:05]}  O-O {[%clk 0:02:58]} 10. Rc1 {[%clk 0:03:05]}  Bd7 {[%clk 0:02:57]} 11. a3 {[%clk 0:03:05]}  Rc8 {[%clk 0:02:57]} 12. b4 {[%clk 0:03:06]}  b5 {[%clk 0:02:57]} 13. Ne5 {[%clk 0:03:04]}  Nxe5 {[%clk 0:02:56]} 14. dxe5 {[%clk 0:03:05]}  Ne8 {[%clk 0:02:56]} 15. Bf4 {[%clk 0:03:05]}  Nc7 {[%clk 0:02:56]} 16. Qh5 {[%clk 0:03:02]}  g6 {[%clk 0:02:55]} 17. Qh6 {[%clk 0:03:01]}  Na8 {[%clk 0:02:54]} 18. e4 {[%clk 0:02:54]}  Nb6 {[%clk 0:02:00]} 19. Rfd1 {[%clk 0:02:50]}  Bc6 {[%clk 0:01:57]} 20. exd5 {[%clk 0:02:50]}  Nxd5 {[%clk 0:01:58]} 21. Bd2 {[%clk 0:02:41]}  Nxc3 {[%clk 0:01:46]} 22. Rxc3 {[%clk 0:02:35]}  Bd5 {[%clk 0:01:44]} 23. Rxc8 {[%clk 0:02:28]}  Qxc8 {[%clk 0:01:42]} 24. h4 {[%clk 0:02:24]}  Qb7 {[%clk 0:01:38]} 25. h5 {[%clk 0:02:03]}  Be4 {[%clk 0:01:24]} 26. Bxe4 {[%clk 0:01:44]}  Qxe4 {[%clk 0:01:25]} 27. hxg6 {[%clk 0:01:41]}  hxg6 {[%clk 0:01:10]} 28. Re1 {[%clk 0:01:40]}  Qf5 {[%clk 0:00:53]} 29. Re3 {[%clk 0:01:35]}  Bg5 {[%clk 0:00:51]} 30. Qh3 {[%clk 0:01:01]}  Qxh3 {[%clk 0:00:41]} 31. gxh3 {[%clk 0:01:01]}  Bxe3 {[%clk 0:00:41]} 32. Bxe3 {[%clk 0:01:02]}  Rd8 {[%clk 0:00:41]} 33. Kg2 {[%clk 0:00:58]}  Rd3 {[%clk 0:00:40]} 34. Bc5 {[%clk 0:00:56]}  Rxa3 {[%clk 0:00:39]} 35. f3 {[%clk 0:00:56]}  Rc3 {[%clk 0:00:39]} 36. Bd6 {[%clk 0:00:56]}  Ra3 {[%clk 0:00:37]} 37. Kg3 {[%clk 0:00:56]}  a5 {[%clk 0:00:36]} 38. bxa5 {[%clk 0:00:54]}  Rxa5 {[%clk 0:00:37]} 39. Kg4 {[%clk 0:00:55]}  Ra4+ {[%clk 0:00:36]} 40. f4 {[%clk 0:00:55]}  b4 {[%clk 0:00:34]} 41. Bc5 {[%clk 0:00:50]}  b3 {[%clk 0:00:34]} 0-1


[Site "https://www.chess.com"]

[Event "Titled Tuesday Blitz August 08 Late 2023"]
[White "Arabidze, Meri"]
[Black "Osmak, Yuliia"]
[WhiteFideId "13604040"]
[BlackFideId "14101602"]
[WhiteElo "2601"]
[BlackElo "2490"]
[Result "0-1"]
[Round "8"]
[TimeControl "180+1"]
[Date "2023.08.08"]
[WhiteClock "0:00:00"]
[BlackClock "0:00:07"]
[Board "68"]

1. d4 {[%clk 0:03:00]}  d5 {[%clk 0:02:57]} 2. Bg5 {[%clk 0:03:00]}  f6 {[%clk 0:02:53]} 3. Bf4 {[%clk 0:02:59]}  g5 {[%clk 0:02:50]} 4. Bg3 {[%clk 0:02:55]}  h5 {[%clk 0:02:50]} 5. h4 {[%clk 0:02:55]}  g4 {[%clk 0:02:49]} 6. e3 {[%clk 0:02:55]}  Nh6 {[%clk 0:02:43]} 7. Bd3 {[%clk 0:02:54]}  Bf5 {[%clk 0:02:41]} 8. Ne2 {[%clk 0:02:52]}  Nc6 {[%clk 0:02:38]} 9. Nbc3 {[%clk 0:02:46]}  e6 {[%clk 0:02:30]} 10. Nb5 {[%clk 0:02:43]}  Bb4+ {[%clk 0:02:23]} 11. c3 {[%clk 0:02:41]}  Ba5 {[%clk 0:02:23]} 12. b4 {[%clk 0:02:35]}  Bb6 {[%clk 0:02:23]} 13. a4 {[%clk 0:02:34]}  a6 {[%clk 0:02:08]} 14. Na3 {[%clk 0:02:34]}  Qd7 {[%clk 0:01:56]} 15. a5 {[%clk 0:02:31]}  Ba7 {[%clk 0:01:55]} 16. O-O {[%clk 0:02:24]}  Bxd3 {[%clk 0:01:46]} 17. Qxd3 {[%clk 0:02:25]}  Nf5 {[%clk 0:01:45]} 18. Rab1 {[%clk 0:02:20]}  Qh7 {[%clk 0:01:41]} 19. Rfd1 {[%clk 0:02:12]}  Nxg3 {[%clk 0:01:39]} 20. Nxg3 {[%clk 0:02:11]}  Qxd3 {[%clk 0:01:38]} 21. Rxd3 {[%clk 0:02:12]}  Kd7 {[%clk 0:01:25]} 22. e4 {[%clk 0:02:11]}  Ne7 {[%clk 0:01:14]} 23. c4 {[%clk 0:02:04]}  c6 {[%clk 0:01:11]} 24. b5 {[%clk 0:02:01]}  axb5 {[%clk 0:00:57]} 25. cxb5 {[%clk 0:01:58]}  Bb8 {[%clk 0:00:49]} 26. exd5 {[%clk 0:01:38]}  exd5 {[%clk 0:00:41]} 27. bxc6+ {[%clk 0:01:26]}  bxc6 {[%clk 0:00:41]} 28. Rb7+ {[%clk 0:01:17]}  Bc7 {[%clk 0:00:41]} 29. Re3 {[%clk 0:01:16]}  Rh7 {[%clk 0:00:26]} 30. Nb5 {[%clk 0:00:25]}  cxb5 {[%clk 0:00:21]} 31. Rc3 {[%clk 0:00:25]}  Nc6 {[%clk 0:00:20]} 32. Rc5 {[%clk 0:00:22]}  Rxa5 {[%clk 0:00:19]} 33. Rxd5+ {[%clk 0:00:14]}  Kc8 {[%clk 0:00:18]} 34. Rbxb5 {[%clk 0:00:13]}  Rxb5 {[%clk 0:00:18]} 35. Rxb5 {[%clk 0:00:14]}  Bxg3 {[%clk 0:00:16]} 36. fxg3 {[%clk 0:00:12]}  Nxd4 {[%clk 0:00:17]} 37. Rd5 {[%clk 0:00:11]}  Ne6 {[%clk 0:00:17]} 38. Kh2 {[%clk 0:00:10]}  Kc7 {[%clk 0:00:16]} 39. Rf5 {[%clk 0:00:10]}  Rh6 {[%clk 0:00:16]} 40. Rd5 {[%clk 0:00:09]}  Kc6 {[%clk 0:00:16]} 41. Rf5 {[%clk 0:00:08]}  Kd6 {[%clk 0:00:16]} 42. Ra5 {[%clk 0:00:08]}  Ke7 {[%clk 0:00:16]} 43. Ra7+ {[%clk 0:00:08]}  Ke8 {[%clk 0:00:16]} 44. Ra6 {[%clk 0:00:08]}  Kf7 {[%clk 0:00:15]} 45. Ra7+ {[%clk 0:00:09]}  Kg6 {[%clk 0:00:16]} 46. Ra6 {[%clk 0:00:09]}  Ng7 {[%clk 0:00:15]} 47. Rb6 {[%clk 0:00:08]}  Rh8 {[%clk 0:00:15]} 48. Rc6 {[%clk 0:00:08]}  Re8 {[%clk 0:00:16]} 49. Rd6 {[%clk 0:00:08]}  Re3 {[%clk 0:00:15]} 50. Rd8 {[%clk 0:00:06]}  Nf5 {[%clk 0:00:15]} 51. Rg8+ {[%clk 0:00:06]}  Kh7 {[%clk 0:00:15]} 52. Rf8 {[%clk 0:00:07]}  Kg7 {[%clk 0:00:15]} 53. Rd8 {[%clk 0:00:06]}  Nxg3 {[%clk 0:00:15]} 54. Rd5 {[%clk 0:00:06]}  Nf1+ {[%clk 0:00:14]} 55. Kg1 {[%clk 0:00:05]}  Ng3 {[%clk 0:00:14]} 56. Kh2 {[%clk 0:00:05]}  Kg6 {[%clk 0:00:13]} 57. Ra5 {[%clk 0:00:05]}  Nf5 {[%clk 0:00:13]} 58. Rb5 {[%clk 0:00:04]}  Nxh4 {[%clk 0:00:12]} 59. Rc5 {[%clk 0:00:04]}  Re2 {[%clk 0:00:11]} 60. Kg3 {[%clk 0:00:04]}  Nxg2 {[%clk 0:00:10]} 61. Rg5+ {[%clk 0:00:00]}  Kxg5 {[%clk 0:00:07]} 0-1


[Site "https://www.chess.com"]

[Event "Titled Tuesday Blitz August 08 Late 2023"]
[White "Arnold, Ken"]
[Black "Di Berardino, Diego Rafael"]
[WhiteFideId "2056836"]
[BlackFideId "2105446"]
[WhiteElo "2467"]
[BlackElo "2600"]
[Result "0-1"]
[Round "8"]
[TimeControl "180+1"]
[Date "2023.08.08"]
[WhiteClock "0:00:00"]
[BlackClock "0:00:05"]
[Board "69"]

1. d4 {[%clk 0:03:00]}  Nf6 {[%clk 0:02:55]} 2. Nf3 {[%clk 0:03:01]}  g6 {[%clk 0:02:56]} 3. c3 {[%clk 0:03:01]}  Bg7 {[%clk 0:02:56]} 4. Bf4 {[%clk 0:03:02]}  O-O {[%clk 0:02:54]} 5. e3 {[%clk 0:03:02]}  c5 {[%clk 0:02:54]} 6. Nbd2 {[%clk 0:03:02]}  b6 {[%clk 0:02:54]} 7. h3 {[%clk 0:03:02]}  Bb7 {[%clk 0:02:55]} 8. Be2 {[%clk 0:03:02]}  d6 {[%clk 0:02:55]} 9. O-O {[%clk 0:03:02]}  Nbd7 {[%clk 0:02:55]} 10. Bh2 {[%clk 0:03:02]}  Rc8 {[%clk 0:02:51]} 11. Qa4 {[%clk 0:02:49]}  a6 {[%clk 0:02:46]} 12. Rad1 {[%clk 0:02:40]}  b5 {[%clk 0:02:32]} 13. Qc2 {[%clk 0:02:38]}  Rc7 {[%clk 0:02:28]} 14. Rfe1 {[%clk 0:02:31]}  Qa8 {[%clk 0:02:28]} 15. dxc5 {[%clk 0:02:15]}  Nxc5 {[%clk 0:02:25]} 16. Bf1 {[%clk 0:02:10]}  Rfc8 {[%clk 0:02:18]} 17. Qb1 {[%clk 0:02:08]}  Nfe4 {[%clk 0:02:14]} 18. Nd4 {[%clk 0:02:03]}  Na4 {[%clk 0:01:54]} 19. Nxe4 {[%clk 0:01:25]}  Bxe4 {[%clk 0:01:52]} 20. Qa1 {[%clk 0:01:24]}  Nb6 {[%clk 0:01:29]} 21. f3 {[%clk 0:01:19]}  Bd5 {[%clk 0:01:28]} 22. e4 {[%clk 0:01:18]}  Bc4 {[%clk 0:01:24]} 23. Bxc4 {[%clk 0:01:04]}  Nxc4 {[%clk 0:01:24]} 24. a4 {[%clk 0:00:59]}  Qb7 {[%clk 0:01:18]} 25. axb5 {[%clk 0:00:58]}  axb5 {[%clk 0:01:18]} 26. Qb1 {[%clk 0:00:44]}  Qb6 {[%clk 0:01:08]} 27. Kh1 {[%clk 0:00:43]}  b4 {[%clk 0:01:08]} 28. Bg1 {[%clk 0:00:38]}  bxc3 {[%clk 0:00:47]} 29. bxc3 {[%clk 0:00:32]}  Qxb1 {[%clk 0:00:45]} 30. Rxb1 {[%clk 0:00:32]}  Na3 {[%clk 0:00:39]} 31. Nb5 {[%clk 0:00:25]}  Nxb5 {[%clk 0:00:33]} 32. Rxb5 {[%clk 0:00:24]}  Bxc3 {[%clk 0:00:33]} 33. Rc1 {[%clk 0:00:23]}  Be5 {[%clk 0:00:29]} 34. Rxc7 {[%clk 0:00:22]}  Rxc7 {[%clk 0:00:29]} 35. Rb1 {[%clk 0:00:23]}  h5 {[%clk 0:00:28]} 36. g3 {[%clk 0:00:20]}  Bxg3 {[%clk 0:00:25]} 37. Kg2 {[%clk 0:00:20]}  Bf4 {[%clk 0:00:22]} 38. Rb2 {[%clk 0:00:20]}  f6 {[%clk 0:00:20]} 39. Re2 {[%clk 0:00:20]}  Kf7 {[%clk 0:00:20]} 40. Bd4 {[%clk 0:00:19]}  Rc1 {[%clk 0:00:20]} 41. Ra2 {[%clk 0:00:19]}  Rd1 {[%clk 0:00:19]} 42. Bf2 {[%clk 0:00:18]}  Rd2 {[%clk 0:00:19]} 43. Rxd2 {[%clk 0:00:17]}  Bxd2 {[%clk 0:00:19]} 44. Kf1 {[%clk 0:00:18]}  Bf4 {[%clk 0:00:19]} 45. Ke2 {[%clk 0:00:18]}  Ke6 {[%clk 0:00:19]} 46. Kd3 {[%clk 0:00:18]}  d5 {[%clk 0:00:19]} 47. exd5+ {[%clk 0:00:18]}  Kxd5 {[%clk 0:00:19]} 48. Bb6 {[%clk 0:00:18]}  e5 {[%clk 0:00:19]} 49. Bd8 {[%clk 0:00:18]}  Ke6 {[%clk 0:00:19]} 50. Bb6 {[%clk 0:00:18]}  Kd5 {[%clk 0:00:19]} 51. Bd8 {[%clk 0:00:17]}  f5 {[%clk 0:00:20]} 52. Be7 {[%clk 0:00:17]}  e4+ {[%clk 0:00:20]} 53. fxe4+ {[%clk 0:00:17]}  fxe4+ {[%clk 0:00:20]} 54. Ke2 {[%clk 0:00:18]}  Ke6 {[%clk 0:00:20]} 55. Bc5 {[%clk 0:00:17]}  Kf5 {[%clk 0:00:21]} 56. Be7 {[%clk 0:00:16]}  g5 {[%clk 0:00:21]} 57. Bc5 {[%clk 0:00:15]}  g4 {[%clk 0:00:19]} 58. hxg4+ {[%clk 0:00:13]}  Kxg4 {[%clk 0:00:12]} 59. Kf2 {[%clk 0:00:12]}  h4 {[%clk 0:00:11]} 60. Kg2 {[%clk 0:00:12]}  h3+ {[%clk 0:00:12]} 61. Kh1 {[%clk 0:00:11]}  Kf3 {[%clk 0:00:12]} 62. Bb6 {[%clk 0:00:11]}  Bg3 {[%clk 0:00:11]} 63. Bc5 {[%clk 0:00:09]}  Bf2 {[%clk 0:00:11]} 64. Be7 {[%clk 0:00:06]}  e3 {[%clk 0:00:11]} 65. Bb4 {[%clk 0:00:05]}  e2 {[%clk 0:00:10]} 66. Bc3 {[%clk 0:00:05]}  Bg3 {[%clk 0:00:09]} 67. Bd2 {[%clk 0:00:05]}  Ke4 {[%clk 0:00:09]} 68. Kg1 {[%clk 0:00:04]}  Kd3 {[%clk 0:00:08]} 69. Bb4 {[%clk 0:00:04]}  Ke3 {[%clk 0:00:04]} 70. Bc5+ {[%clk 0:00:03]}  Kf3 {[%clk 0:00:04]} 71. Bb4 {[%clk 0:00:03]}  Ke4 {[%clk 0:00:03]} 72. Kh1 {[%clk 0:00:03]}  Kd3 {[%clk 0:00:04]} 73. Kg1 {[%clk 0:00:03]}  Kc2 {[%clk 0:00:04]} 74. Kh1 {[%clk 0:00:03]}  Kd1 {[%clk 0:00:05]} 75. Bc3 {[%clk 0:00:00]}  Bf4 {[%clk 0:00:05]} 0-1


[Site "https://www.chess.com"]

[Event "Titled Tuesday Blitz August 08 Late 2023"]
[White "KorolDimitriy75"]
[Black "Pert, Richard G"]
[BlackFideId "404748"]
[WhiteElo "2410"]
[BlackElo "2578"]
[Result "0-1"]
[Round "8"]
[TimeControl "180+1"]
[Date "2023.08.08"]
[WhiteClock "0:00:00"]
[BlackClock "0:00:38"]
[Board "71"]

1. d4 {[%clk 0:03:00]}  Nf6 {[%clk 0:02:59]} 2. c4 {[%clk 0:03:00]}  e5 {[%clk 0:02:59]} 3. dxe5 {[%clk 0:03:00]}  Ng4 {[%clk 0:02:59]} 4. Bf4 {[%clk 0:03:00]}  Bb4+ {[%clk 0:02:58]} 5. Nd2 {[%clk 0:02:50]}  d6 {[%clk 0:02:56]} 6. exd6 {[%clk 0:02:08]}  Qf6 {[%clk 0:02:55]} 7. e3 {[%clk 0:01:41]}  g5 {[%clk 0:02:54]} 8. Bg3 {[%clk 0:01:37]}  h5 {[%clk 0:02:54]} 9. h3 {[%clk 0:00:40]}  h4 {[%clk 0:02:52]} 10. hxg4 {[%clk 0:00:38]}  hxg3 {[%clk 0:02:52]} 11. Rxh8+ {[%clk 0:00:38]}  Qxh8 {[%clk 0:02:52]} 12. fxg3 {[%clk 0:00:35]}  Qxb2 {[%clk 0:02:48]} 13. Nf3 {[%clk 0:00:33]}  Bxd6 {[%clk 0:02:42]} 14. Kf2 {[%clk 0:00:31]}  Nc6 {[%clk 0:02:38]} 15. Be2 {[%clk 0:00:31]}  Bxg4 {[%clk 0:02:33]} 16. Rb1 {[%clk 0:00:28]}  Qxa2 {[%clk 0:02:33]} 17. Rxb7 {[%clk 0:00:19]}  O-O-O {[%clk 0:02:23]} 18. Rb5 {[%clk 0:00:16]}  Bxf3 {[%clk 0:02:13]} 19. Bxf3 {[%clk 0:00:10]}  Bb4 {[%clk 0:02:02]} 20. Bg4+ {[%clk 0:00:08]}  Rd7 {[%clk 0:01:57]} 21. Rd5 {[%clk 0:00:08]}  Nb8 {[%clk 0:01:47]} 22. Kg1 {[%clk 0:00:08]}  Bxd2 {[%clk 0:01:19]} 23. Rxd2 {[%clk 0:00:06]}  Qa3 {[%clk 0:01:05]} 24. Rxd7 {[%clk 0:00:03]}  Qxe3+ {[%clk 0:01:04]} 25. Kh2 {[%clk 0:00:02]}  Nxd7 {[%clk 0:00:49]} 26. Qxd7+ {[%clk 0:00:03]}  Kb7 {[%clk 0:00:50]} 27. Qb5+ {[%clk 0:00:03]}  Qb6 {[%clk 0:00:46]} 28. Bf3+ {[%clk 0:00:01]}  c6 {[%clk 0:00:46]} 29. Bxc6+ {[%clk 0:00:01]}  Kc7 {[%clk 0:00:45]} 30. Qxb6+ {[%clk 0:00:01]}  Kxb6 {[%clk 0:00:44]} 31. Bd5 {[%clk 0:00:00]}  f6 {[%clk 0:00:38]} 0-1


[Site "https://www.chess.com"]

[Event "Titled Tuesday Blitz August 08 Late 2023"]
[White "Adan Bermudez, Sergio"]
[Black "Gajwa Ankit"]
[WhiteFideId "2292726"]
[BlackFideId "5077834"]
[WhiteElo "2563"]
[BlackElo "2404"]
[Result "0-1"]
[Round "8"]
[TimeControl "180+1"]
[Date "2023.08.08"]
[WhiteClock "0:00:00"]
[BlackClock "0:00:29"]
[Board "73"]

1. c4 {[%clk 0:03:00]}  Nf6 {[%clk 0:02:58]} 2. Nc3 {[%clk 0:03:01]}  g6 {[%clk 0:02:58]} 3. e4 {[%clk 0:03:00]}  d6 {[%clk 0:02:59]} 4. g3 {[%clk 0:03:00]}  Bg7 {[%clk 0:03:00]} 5. Bg2 {[%clk 0:03:00]}  O-O {[%clk 0:03:00]} 6. Nge2 {[%clk 0:03:01]}  c5 {[%clk 0:03:01]} 7. a3 {[%clk 0:03:01]}  Nc6 {[%clk 0:03:02]} 8. Rb1 {[%clk 0:03:00]}  Ne8 {[%clk 0:02:57]} 9. b4 {[%clk 0:02:56]}  Nc7 {[%clk 0:02:56]} 10. d3 {[%clk 0:02:55]}  Ne6 {[%clk 0:02:56]} 11. O-O {[%clk 0:02:55]}  Ncd4 {[%clk 0:02:56]} 12. h3 {[%clk 0:02:52]}  Nxe2+ {[%clk 0:02:56]} 13. Nxe2 {[%clk 0:02:52]}  b6 {[%clk 0:02:56]} 14. f4 {[%clk 0:02:48]}  Bb7 {[%clk 0:02:56]} 15. Kh2 {[%clk 0:02:46]}  Nd4 {[%clk 0:02:56]} 16. Nxd4 {[%clk 0:02:43]}  cxd4 {[%clk 0:02:55]} 17. f5 {[%clk 0:02:40]}  e6 {[%clk 0:02:55]} 18. Qg4 {[%clk 0:02:34]}  exf5 {[%clk 0:02:55]} 19. exf5 {[%clk 0:02:34]}  Bxg2 {[%clk 0:02:55]} 20. Kxg2 {[%clk 0:02:35]}  Re8 {[%clk 0:02:49]} 21. Bg5 {[%clk 0:02:31]}  Qc8 {[%clk 0:02:31]} 22. Rbe1 {[%clk 0:02:08]}  Qc6+ {[%clk 0:02:28]} 23. Qf3 {[%clk 0:02:06]}  Qxf3+ {[%clk 0:02:27]} 24. Kxf3 {[%clk 0:02:05]}  f6 {[%clk 0:02:27]} 25. Bf4 {[%clk 0:02:03]}  Rxe1 {[%clk 0:02:26]} 26. Rxe1 {[%clk 0:02:03]}  Bf8 {[%clk 0:02:25]} 27. g4 {[%clk 0:01:58]}  a5 {[%clk 0:02:21]} 28. b5 {[%clk 0:01:58]}  d5 {[%clk 0:02:21]} 29. cxd5 {[%clk 0:01:53]}  Bxa3 {[%clk 0:02:21]} 30. Re6 {[%clk 0:01:51]}  Bc5 {[%clk 0:02:18]} 31. Rc6 {[%clk 0:01:15]}  gxf5 {[%clk 0:02:08]} 32. d6 {[%clk 0:00:36]}  Rd8 {[%clk 0:02:07]} 33. Rxc5 {[%clk 0:00:21]}  bxc5 {[%clk 0:02:06]} 34. b6 {[%clk 0:00:22]}  fxg4+ {[%clk 0:01:28]} 35. hxg4 {[%clk 0:00:21]}  Kf7 {[%clk 0:01:25]} 36. d7 {[%clk 0:00:14]}  Rxd7 {[%clk 0:00:41]} 37. Bc7 {[%clk 0:00:14]}  Re7 {[%clk 0:00:38]} 38. b7 {[%clk 0:00:13]}  Re8 {[%clk 0:00:38]} 39. b8=Q {[%clk 0:00:14]}  Rxb8 {[%clk 0:00:37]} 40. Bxb8 {[%clk 0:00:14]}  Ke6 {[%clk 0:00:36]} 41. Bf4 {[%clk 0:00:12]}  a4 {[%clk 0:00:35]} 42. Ke4 {[%clk 0:00:09]}  a3 {[%clk 0:00:34]} 43. Bc1 {[%clk 0:00:09]}  a2 {[%clk 0:00:34]} 44. Bb2 {[%clk 0:00:10]}  f5+ {[%clk 0:00:33]} 45. gxf5+ {[%clk 0:00:10]}  Kf6 {[%clk 0:00:34]} 46. Kd5 {[%clk 0:00:08]}  Kxf5 {[%clk 0:00:33]} 47. Kxc5 {[%clk 0:00:08]}  h5 {[%clk 0:00:33]} 48. Bxd4 {[%clk 0:00:02]}  h4 {[%clk 0:00:32]} 49. Kb4 {[%clk 0:00:03]}  h3 {[%clk 0:00:29]} 50. Ka3 {[%clk 0:00:00]}  h2 {[%clk 0:00:29]} 0-1


[Site "https://www.chess.com"]

[Event "Titled Tuesday Blitz August 08 Late 2023"]
[White "Eggleston, Thomas A"]
[Black "Shapiro, Viktor"]
[WhiteFideId "412139"]
[BlackFideId "4175700"]
[WhiteElo "2395"]
[BlackElo "2553"]
[Result "0-1"]
[Round "8"]
[TimeControl "180+1"]
[Date "2023.08.08"]
[WhiteClock "0:00:00"]
[BlackClock "0:00:26"]
[Board "75"]

1. e4 {[%clk 0:03:00]}  e5 {[%clk 0:02:54]} 2. Nf3 {[%clk 0:03:00]}  Nc6 {[%clk 0:02:53]} 3. d4 {[%clk 0:03:00]}  exd4 {[%clk 0:02:53]} 4. Nxd4 {[%clk 0:03:01]}  Bc5 {[%clk 0:02:54]} 5. Nxc6 {[%clk 0:03:00]}  Qf6 {[%clk 0:02:54]} 6. Qd2 {[%clk 0:03:01]}  dxc6 {[%clk 0:02:52]} 7. Bd3 {[%clk 0:02:58]}  Be6 {[%clk 0:02:46]} 8. Nc3 {[%clk 0:02:55]}  O-O-O {[%clk 0:02:41]} 9. O-O {[%clk 0:02:54]}  h5 {[%clk 0:02:37]} 10. Kh1 {[%clk 0:02:53]}  h4 {[%clk 0:02:35]} 11. f4 {[%clk 0:02:47]}  h3 {[%clk 0:02:30]} 12. g3 {[%clk 0:02:44]}  Nh6 {[%clk 0:02:25]} 13. f5 {[%clk 0:02:42]}  Bc4 {[%clk 0:02:22]} 14. Qe2 {[%clk 0:02:38]}  Bxd3 {[%clk 0:02:18]} 15. cxd3 {[%clk 0:02:38]}  Qd4 {[%clk 0:02:02]} 16. Bg5 {[%clk 0:02:15]}  f6 {[%clk 0:01:59]} 17. Bxh6 {[%clk 0:02:15]}  gxh6 {[%clk 0:01:50]} 18. Rad1 {[%clk 0:02:14]}  h5 {[%clk 0:01:49]} 19. Rf3 {[%clk 0:01:46]}  Rhg8 {[%clk 0:01:45]} 20. Rf4 {[%clk 0:01:28]}  Rg5 {[%clk 0:01:37]} 21. Rh4 {[%clk 0:01:27]}  Bb4 {[%clk 0:01:31]} 22. Nb1 {[%clk 0:01:18]}  Rg4 {[%clk 0:01:23]} 23. Rxg4 {[%clk 0:00:57]}  hxg4 {[%clk 0:01:23]} 24. a3 {[%clk 0:00:57]}  Bd6 {[%clk 0:01:17]} 25. Qxg4 {[%clk 0:00:48]}  Qxb2 {[%clk 0:01:17]} 26. Qxh3 {[%clk 0:00:40]}  Qc2 {[%clk 0:00:46]} 27. Qh5 {[%clk 0:00:29]}  Be5 {[%clk 0:00:41]} 28. Qf3 {[%clk 0:00:25]}  Rh8 {[%clk 0:00:37]} 29. Nd2 {[%clk 0:00:19]}  Bxg3 {[%clk 0:00:34]} 30. Kg2 {[%clk 0:00:09]}  Be5 {[%clk 0:00:29]} 31. h4 {[%clk 0:00:09]}  Rxh4 {[%clk 0:00:27]} 32. Rh1 {[%clk 0:00:00]}  Qxd2+ {[%clk 0:00:26]} 0-1


[Site "https://www.chess.com"]

[Event "Titled Tuesday Blitz August 08 Late 2023"]
[White "Czerw, Dawid"]
[Black "Andrews, Todd"]
[WhiteFideId "1145746"]
[BlackFideId "2012456"]
[WhiteElo "2529"]
[BlackElo "2383"]
[Result "0-1"]
[Round "8"]
[TimeControl "180+1"]
[Date "2023.08.08"]
[WhiteClock "0:00:47"]
[BlackClock "0:00:27"]
[Board "76"]

1. e4 {[%clk 0:03:00]}  c5 {[%clk 0:02:59]} 2. Nf3 {[%clk 0:02:59]}  d6 {[%clk 0:02:59]} 3. d4 {[%clk 0:02:57]}  cxd4 {[%clk 0:03:00]} 4. Nxd4 {[%clk 0:02:58]}  Nf6 {[%clk 0:03:00]} 5. Nc3 {[%clk 0:02:58]}  a6 {[%clk 0:03:01]} 6. h4 {[%clk 0:02:58]}  e6 {[%clk 0:02:59]} 7. h5 {[%clk 0:02:58]}  h6 {[%clk 0:02:58]} 8. Be3 {[%clk 0:02:56]}  b5 {[%clk 0:02:58]} 9. g3 {[%clk 0:02:52]}  Bb7 {[%clk 0:02:59]} 10. Bg2 {[%clk 0:02:52]}  Nfd7 {[%clk 0:02:59]} 11. O-O {[%clk 0:02:50]}  Nb6 {[%clk 0:02:57]} 12. b3 {[%clk 0:02:48]}  N8d7 {[%clk 0:02:57]} 13. f4 {[%clk 0:02:48]}  Qc7 {[%clk 0:02:56]} 14. Nce2 {[%clk 0:02:47]}  Be7 {[%clk 0:02:53]} 15. g4 {[%clk 0:02:43]}  d5 {[%clk 0:02:32]} 16. e5 {[%clk 0:02:39]}  O-O-O {[%clk 0:02:20]} 17. a4 {[%clk 0:02:36]}  bxa4 {[%clk 0:02:17]} 18. bxa4 {[%clk 0:02:29]}  Nc4 {[%clk 0:02:17]} 19. Bf2 {[%clk 0:02:29]}  Nc5 {[%clk 0:02:11]} 20. Nc3 {[%clk 0:02:19]}  f6 {[%clk 0:01:43]} 21. Re1 {[%clk 0:02:09]}  fxe5 {[%clk 0:01:42]} 22. fxe5 {[%clk 0:02:10]}  Bg5 {[%clk 0:01:41]} 23. Re2 {[%clk 0:02:02]}  Rhf8 {[%clk 0:01:38]} 24. a5 {[%clk 0:01:58]}  Rxf2 {[%clk 0:01:24]} 25. Kxf2 {[%clk 0:01:57]}  Rf8+ {[%clk 0:01:24]} 26. Kg1 {[%clk 0:01:57]}  Be3+ {[%clk 0:01:14]} 27. Kh1 {[%clk 0:01:49]}  Qf7 {[%clk 0:01:12]} 28. Na4 {[%clk 0:01:30]}  Qe7 {[%clk 0:01:01]} 29. Qe1 {[%clk 0:01:20]}  Bxd4 {[%clk 0:00:59]} 30. c3 {[%clk 0:01:17]}  Nxa4 {[%clk 0:00:48]} 31. Rxa4 {[%clk 0:01:12]}  Bc5 {[%clk 0:00:42]} 32. Ra1 {[%clk 0:01:10]}  Rf4 {[%clk 0:00:32]} 33. Qg3 {[%clk 0:01:07]}  Qg5 {[%clk 0:00:32]} 34. Rf1 {[%clk 0:00:59]}  Rxg4 {[%clk 0:00:29]} 35. Qf3 {[%clk 0:00:56]}  Rh4+ {[%clk 0:00:28]} 36. Bh3 {[%clk 0:00:47]}  d4 {[%clk 0:00:27]} 0-1


[Site "https://www.chess.com"]